fUSD/lending_fUSD_20250521
["ID","MTS","AMOUNT","RATE_DAILY","PERIOD"]
[361855643,1747843844317,-1255.16,0.00039998,30]
[361855644,1747843844327,-420.0,0.00039998,30]
[361855645,1747843844338,-420.0,0.00039998,30]
[361855646,1747843844351,-420.0,0.00039998,30]
[361855647,1747843844361,-420.0,0.00039998,30]
[361855648,1747843844371,-320.48846627,0.00039998,30]
[361855649,1747843844381,-1177.53,0.00039998,30]
[361855650,1747843844391,-659.93,0.00039998,30]
[361855651,1747843844400,-420.0,0.00039998,30]
[361855652,1747843844411,-420.0,0.00039998,30]
[361855653,1747843844422,-347.8798036,0.00039998,30]
[361855654,1747843844434,-420.0,0.00039998,30]
[361855655,1747843844447,-420.0,0.00039998,30]
[361855656,1747843844457,-324.324548,0.00039998,30]
[361855657,1747843844467,-412.0167556,0.00039998,30]
[361855658,1747843844477,-420.0,0.00039998,30]
[361855659,1747843844486,-904.76,0.00039998,30]
[361855660,1747843844496,-463.83,0.00039998,30]
[361855661,1747843844506,-420.0,0.00039998,30]
[361855662,1747843844516,-420.0,0.00039998,30]
[361855663,1747843844526,-420.0,0.00039998,30]
[361855664,1747843844536,-420.0,0.00039998,30]
[361855665,1747843844545,-420.0,0.00039998,30]
[361855666,1747843844555,-802.3,0.00039998,30]
[361855667,1747843844566,-5079.24,0.00039998,30]
[361855668,1747843844575,-420.0,0.00039998,30]
[361855669,1747843844584,-265.096212,0.00039998,30]
[361855670,1747843844594,-420.0,0.00039998,30]
[361855671,1747843844604,-2730.44,0.00039998,30]
[361855677,1747843844614,-420.0,0.00039998,30]
[361855678,1747843844812,-420.0,0.00039998,30]
[361855679,1747843844822,-1248.93,0.00039998,5]
[361855680,1747843844832,-1247.64,0.00039999,5]
[361855681,1747843844843,-595.982918,0.00039999,7]
[361855682,1747843844852,-595.982918,0.00039999,7]
[361855683,1747843844862,-595.982918,0.00039999,7]
[361855684,1747843844872,-595.982918,0.00039999,7]
[361855685,1747843844882,-595.982918,0.00039999,7]
[361855686,1747843844892,-595.982918,0.00039999,7]
[361855687,1747843844902,-595.982918,0.00039999,7]
[361855688,1747843844911,-595.982918,0.00039999,7]
[361855689,1747843844921,-595.982918,0.00039999,7]
[361855690,1747843844931,-595.982918,0.00039999,7]
[361855691,1747843844940,-595.982918,0.00039999,7]
[361855692,1747843844951,-595.982918,0.00039999,7]
[361855693,1747843844960,-595.982918,0.00039999,7]
[361855694,1747843844969,-595.982918,0.00039999,7]
[361855695,1747843844979,-595.982918,0.00039999,7]
[361855696,1747843844988,-595.982918,0.00039999,7]
[361855697,1747843844998,-595.982918,0.00039999,7]
[361855698,1747843845007,-595.982918,0.00039999,7]
[361855699,1747843845016,-595.982918,0.00039999,7]
[361855700,1747843845026,-595.982918,0.00039999,7]
[361855701,1747843845035,-595.982918,0.00039999,7]
[361855702,1747843845044,-595.982918,0.00039999,7]
[361855703,1747843845055,-595.982918,0.00039999,7]
[361855704,1747843845064,-595.982918,0.00039999,7]
[361855705,1747843845074,-595.982918,0.00039999,7]
[361855706,1747843845083,-595.982918,0.00039999,7]
[361855707,1747843845092,-595.982918,0.00039999,7]
[361855708,1747843845102,-595.982918,0.00039999,7]
[361855709,1747843845115,-595.982918,0.00039999,7]
[361855710,1747843845125,-595.982918,0.00039999,7]
[361855711,1747843845135,-595.982918,0.00039999,7]
[361855712,1747843845145,-595.982918,0.00039999,7]
[361855713,1747843845154,-595.982918,0.00039999,7]
[361855714,1747843845164,-595.982918,0.00039999,7]
[361855715,1747843845174,-595.982918,0.00039999,7]
[361855716,1747843845184,-595.982918,0.00039999,7]
[361855717,1747843845194,-595.982918,0.00039999,7]
[361855718,1747843845204,-595.982918,0.00039999,7]
[361855719,1747843845213,-595.982918,0.00039999,7]
[361855720,1747843845222,-595.982918,0.00039999,7]
[361855721,1747843845232,-595.982918,0.00039999,7]
[361855722,1747843845242,-595.982918,0.00039999,7]
[361855723,1747843845251,-595.982918,0.00039999,7]
[361855724,1747843845260,-595.982918,0.00039999,7]
[361855725,1747843845270,-595.982918,0.00039999,7]
[361855726,1747843845279,-595.982918,0.00039999,7]
[361855727,1747843845288,-595.982918,0.00039999,7]
[361855728,1747843845298,-595.982918,0.00039999,7]
[361855729,1747843845307,-595.982918,0.00039999,7]
[361855730,1747843845317,-595.982918,0.00039999,7]
[361855731,1747843845328,-595.982918,0.00039999,7]
[361855732,1747843845337,-595.982918,0.00039999,7]
[361855733,1747843845348,-595.982918,0.00039999,7]
[361855734,1747843845357,-595.982918,0.00039999,7]
[361855735,1747843845367,-595.982918,0.00039999,7]
[361855736,1747843845377,-595.982918,0.00039999,7]
[361855737,1747843845386,-595.982918,0.00039999,7]
[361855738,1747843845395,-595.982918,0.00039999,7]
[361855739,1747843845405,-595.982918,0.00039999,7]
[361855740,1747843845415,-593.85440758,0.00039999,7]
[361855741,1747843845424,-593.85440758,0.00039999,7]
[361855742,1747843845434,-593.85440758,0.00039999,7]
[361855743,1747843845445,-593.85440758,0.00039999,7]
[361855744,1747843845454,-593.85440758,0.00039999,7]
[361855745,1747843845463,-593.85440758,0.00039999,7]
[361855746,1747843845473,-593.85440758,0.00039999,7]
[361855747,1747843845482,-593.85440758,0.00039999,7]
[361855748,1747843845492,-593.85440758,0.00039999,7]
[361855749,1747843845501,-593.85440758,0.00039999,7]
[361855750,1747843845512,-593.85440758,0.00039999,7]
[361855751,1747843845521,-593.85440758,0.00039999,7]
[361855752,1747843845531,-593.85440758,0.00039999,7]
[361855753,1747843845540,-593.85440758,0.00039999,7]
[361855754,1747843845549,-593.85440758,0.00039999,7]
[361855755,1747843845559,-593.85440758,0.00039999,7]
[361855756,1747843845568,-593.85440758,0.00039999,7]
[361855757,1747843845578,-593.85440758,0.00039999,7]
[361855758,1747843845587,-593.85440758,0.00039999,7]
[361855759,1747843845596,-593.85440758,0.00039999,7]
[361855760,1747843845606,-593.85440758,0.00039999,7]
[361855761,1747843845615,-593.85440758,0.00039999,7]
[361855762,1747843845625,-593.85440758,0.00039999,7]
[361855763,1747843845634,-593.85440758,0.00039999,7]
[361855764,1747843845643,-593.85440758,0.00039999,7]
[361855765,1747843845653,-593.85440758,0.00039999,7]
[361855766,1747843845662,-593.85440758,0.00039999,7]
[361855767,1747843845672,-593.85440758,0.00039999,7]
[361855768,1747843845682,-620.07456637,0.00039999,31]
[361855769,1747843845693,-620.07456637,0.00039999,31]
[361855770,1747843845703,-620.07456637,0.00039999,31]
[361855771,1747843845712,-620.07456637,0.00039999,31]
[361855772,1747843845721,-620.07456637,0.00039999,31]
[361855773,1747843845731,-620.07456637,0.00039999,31]
[361855774,1747843845740,-620.07456637,0.00039999,31]
[361855775,1747843845750,-620.07456637,0.00039999,31]
[361855776,1747843845759,-620.07456637,0.00039999,31]
[361855777,1747843845769,-620.07456637,0.00039999,31]
[361855778,1747843845778,-620.07456637,0.00039999,31]
[361855779,1747843845788,-620.07456637,0.00039999,31]
[361855780,1747843845797,-620.07456637,0.00039999,31]
[361855781,1747843845807,-620.07456637,0.00039999,31]
[361855782,1747843845817,-620.07456637,0.00039999,31]
[361855783,1747843845826,-620.07456636,0.00039999,31]
[361855784,1747843845835,-620.07456637,0.00039999,31]
[361855785,1747843845846,-620.07456637,0.00039999,31]
[361855786,1747843845856,-620.07456637,0.00039999,31]
[361855787,1747843845866,-620.07456637,0.00039999,31]
[361855788,1747843845875,-620.07456637,0.00039999,31]
[361855789,1747843845886,-620.07456637,0.00039999,31]
[361855790,1747843845896,-620.07456637,0.00039999,31]
[361855791,1747843845907,-180.37707786,0.00039999,31]
[361855792,1747843845916,-620.07456637,0.00039999,31]
[361855793,1747843845926,-620.07456637,0.00039999,31]
[361855794,1747843845935,-620.07456637,0.00039999,31]
[361855795,1747843845946,-620.07456637,0.00039999,31]
[361855796,1747843845958,-620.07456637,0.00039999,31]
[361855797,1747843845968,-620.07456637,0.00039999,31]
[361855798,1747843845978,-620.07456637,0.00039999,31]
[361855799,1747843845987,-620.07456637,0.00039999,31]
[361855800,1747843845997,-620.07456637,0.00039999,31]
[361855801,1747843846006,-620.07456637,0.00039999,31]
[361855802,1747843846016,-620.07456637,0.00039999,31]
[361855803,1747843846026,-624.96000234,0.00039999,31]
[361855804,1747843846036,-624.96000234,0.00039999,31]
[361855805,1747843846045,-624.96000234,0.00039999,31]
[361855806,1747843846055,-624.96000234,0.00039999,31]
[361855807,1747843846065,-624.96000234,0.00039999,31]
[361855808,1747843846074,-624.96000234,0.00039999,31]
[361855809,1747843846086,-624.96000234,0.00039999,31]
[361855810,1747843846096,-624.96000234,0.00039999,31]
[361855811,1747843846107,-624.96000234,0.00039999,31]
[361855812,1747843846121,-624.96000234,0.00039999,31]
[361855813,1747843846132,-624.96000234,0.00039999,31]
[361855814,1747843846143,-624.96000234,0.00039999,31]
[361855815,1747843846155,-624.96000234,0.00039999,31]
[361855816,1747843846167,-624.96000234,0.00039999,31]
[361855817,1747843846177,-624.96000234,0.00039999,31]
[361855818,1747843846189,-624.96000234,0.00039999,31]
[361855819,1747843846201,-624.96000234,0.00039999,31]
[361855820,1747843846211,-624.96000234,0.00039999,31]
[361855821,1747843846222,-624.96000234,0.00039999,31]
[361855822,1747843846232,-624.96000234,0.00039999,31]
[361855823,1747843846242,-624.96000234,0.00039999,31]
[361855824,1747843846252,-624.96000234,0.00039999,31]
[361855825,1747843846265,-624.96000234,0.00039999,31]
[361855826,1747843846275,-624.96000234,0.00039999,31]
[361855827,1747843846287,-624.96000234,0.00039999,31]
[361855828,1747843846298,-624.96000234,0.00039999,31]
[361855829,1747843846308,-624.96000234,0.00039999,31]
[361855830,1747843846319,-624.96000234,0.00039999,31]
[361855831,1747843846330,-604.89955782,0.00039999,31]
[361855832,1747843846340,-604.89955782,0.00039999,31]
[361855833,1747843846351,-604.89955782,0.00039999,31]
[361855834,1747843846361,-604.89955782,0.00039999,31]
[361855835,1747843846371,-604.89955782,0.00039999,31]
[361855836,1747843846380,-604.89955782,0.00039999,31]
[361855837,1747843846390,-604.89955782,0.00039999,31]
[361855838,1747843846399,-604.89955782,0.00039999,31]
[361855839,1747843846409,-604.89955782,0.00039999,31]
[361855840,1747843846418,-604.89955782,0.00039999,31]
[361855841,1747843846428,-604.89955782,0.00039999,31]
[361855842,1747843846438,-604.89955782,0.00039999,31]
[361855843,1747843846448,-604.89955782,0.00039999,31]
[361855844,1747843846457,-240.83867398,0.00039999,31]
[361855845,1747843846467,-251.56650743,0.00039999,31]
[361855846,1747843846476,-604.89955782,0.00039999,31]
[361855847,1747843846486,-604.89955782,0.00039999,31]
[361855848,1747843846498,-604.89955782,0.00039999,31]
[361855849,1747843846508,-3169.6619496,0.0004,40]
[361855852,1747843847303,-3845.24999997,0.0004,40]
[361855853,1747843847314,-3505.02499855,0.0004,40]
[361855854,1747843847326,-10980.63456963,0.0004,40]
[361855855,1747843847337,-17564.2213333,0.0004,40]
[361855856,1747843847355,-1139.88512041,0.0004,40]
[361855857,1747843847367,-992.73578242,0.0004,40]
[361855858,1747843847379,-8802.58624612,0.0004,40]
[361855859,1747843847388,-900.0,0.0004,41]
[361855860,1747843847397,-5000.0,0.0004,10]
[361855861,1747843847406,-5000.0,0.0004,10]
[361855862,1747843847416,-5000.0,0.0004,10]
[361855863,1747843847425,-3238.62325333,0.0004,10]
[361855864,1747843847437,-1761.37674667,0.0004,10]
[361855865,1747843847446,-5000.0,0.0004,10]
[361855866,1747843847455,-5000.0,0.0004,10]
[361855867,1747843847465,-5000.0,0.0004,10]
[361855868,1747843847474,-4964.0,0.0004,10]
[361855869,1747843847483,-420.0,0.00040009,30]
[361855870,1747843847493,-420.0,0.00040009,30]
[361855871,1747843847502,-159.03182239,0.0004003,28]
[361855872,1747843847512,-578.9,0.00040039,30]
[361855873,1747843847521,-250.0,0.00040058,2]
[361855874,1747843847532,-8974.03,0.00040091,30]
[361855875,1747843847541,-1000.0,0.00040091,30]
[361855876,1747843847550,-420.0,0.00040091,30]
[361855877,1747843847560,-420.0,0.00040091,30]
[361855878,1747843847570,-420.0,0.00040091,30]
[361855879,1747843847579,-1149.69,0.00040091,30]
[361855880,1747843847589,-420.0,0.00040091,30]
[361855881,1747843847599,-420.0,0.00040091,30]
[361855882,1747843847609,-420.0,0.00040091,30]
[361855883,1747843847618,-420.0,0.00040091,30]
[361855884,1747843847628,-420.0,0.00040091,30]
[361855885,1747843847638,-420.0,0.00040091,30]
[361855886,1747843847648,-420.0,0.00040091,30]
[361855887,1747843847658,-677.85,0.00040091,30]
[361855888,1747843847667,-420.0,0.00040091,30]
[361855889,1747843847677,-548.93,0.00040091,30]
[361855890,1747843847686,-1511.72,0.00040091,30]
[361855891,1747843847696,-420.0,0.00040091,30]
[361855892,1747843847705,-420.0,0.00040091,30]
[361855893,1747843847715,-420.0,0.00040091,30]
[361855894,1747843847724,-420.0,0.00040091,30]
[361855895,1747843847733,-420.0,0.00040091,30]
[361855896,1747843847743,-420.0,0.00040091,30]
[361855897,1747843847943,-786.34,0.00040091,30]
[361855898,1747843847954,-420.0,0.00040091,30]
[361855899,1747843847964,-420.0,0.00040091,30]
[361855900,1747843847974,-1897.7,0.00040091,30]
[361855901,1747843847985,-420.0,0.00040091,30]
[361855902,1747843847995,-420.0,0.00040091,30]
[361855903,1747843848005,-420.0,0.00040091,30]
[361855904,1747843848014,-420.0,0.00040091,30]
[361855905,1747843848024,-420.0,0.00040091,30]
[361855906,1747843848034,-554.24561025,0.00040091,30]
[361855907,1747843848045,-420.0,0.00040091,30]
[361855908,1747843848055,-420.0,0.00040091,30]
[361855909,1747843848065,-2647.94,0.00040091,30]
[361855910,1747843848075,-1272.34,0.00040091,30]
[361855911,1747843848086,-580.45,0.00040091,30]
[361855912,1747843848096,-420.0,0.00040091,30]
[361855913,1747843848106,-542.71277941,0.000401,120]
[361855914,1747843848119,-420.0,0.00040108,30]
[361855915,1747843848129,-475.41,0.00040108,30]
[361855916,1747843848138,-420.0,0.00040108,30]
[361855917,1747843848149,-420.0,0.00040108,25]
[361855918,1747843848160,-420.0,0.00040108,30]
[361855919,1747843848170,-2916.89,0.00040108,30]
[361855920,1747843848180,-420.0,0.00040108,30]
[361855921,1747843848191,-420.0,0.00040108,30]
[361855922,1747843848202,-420.0,0.00040108,30]
[361855923,1747843848211,-420.0,0.00040108,30]
[361855924,1747843848221,-420.0,0.00040108,30]
[361855925,1747843848231,-420.0,0.00040108,30]
[361855926,1747843848241,-692.95,0.00040108,30]
[361855927,1747843848252,-1331.61,0.00040108,30]
[361855928,1747843848262,-549.26,0.00040108,30]
[361855929,1747843848271,-766.69,0.00040108,30]
[361855930,1747843848282,-420.0,0.00040108,30]
[361855931,1747843848291,-420.0,0.00040108,30]
[361855932,1747843848301,-420.0,0.00040108,30]
[361855933,1747843848311,-39739.73,0.00040108,7]
[361855934,1747843848320,-420.0,0.00040108,30]
[361855935,1747843848330,-2008.65,0.00040108,30]
[361855936,1747843848340,-420.0,0.00040108,30]
[361855937,1747843848349,-14549.31,0.00040108,2]
[361855938,1747843848359,-420.0,0.00040108,30]
[361855939,1747843848369,-1255.16,0.00040108,30]
[361855940,1747843848379,-420.0,0.00040108,30]
[361855941,1747843848389,-420.0,0.00040108,30]
[361855942,1747843848399,-420.0,0.00040108,30]
[361855943,1747843848410,-420.0,0.00040108,30]
[361855944,1747843848419,-1177.53,0.00040108,30]
[361855945,1747843848429,-659.93,0.00040108,30]
[361855946,1747843848439,-420.0,0.00040108,30]
[361855947,1747843848449,-420.0,0.00040108,30]
[361855948,1747843848459,-420.0,0.00040108,30]
[361855949,1747843848469,-420.0,0.00040108,30]
[361855950,1747843848479,-324.324548,0.00040108,30]
[361855951,1747843848488,-420.0,0.00040108,30]
[361855952,1747843848498,-904.76,0.00040108,30]
[361855953,1747843848507,-463.83,0.00040108,30]
[361855954,1747843848517,-420.0,0.00040108,30]
[361855955,1747843848528,-420.0,0.00040108,30]
[361855956,1747843848538,-420.0,0.00040108,30]
[361855957,1747843848548,-420.0,0.00040108,30]
[361855958,1747843848558,-420.0,0.00040108,30]
[361855959,1747843848568,-802.3,0.00040108,30]
[361855960,1747843848578,-5079.24,0.00040108,30]
[361855961,1747843848588,-420.0,0.00040108,30]
[361855962,1747843848598,-265.096212,0.00040108,30]
[361855963,1747843848609,-420.0,0.00040108,30]
[361855964,1747843848618,-2730.44,0.00040108,30]
[361855965,1747843848629,-420.0,0.00040108,30]
[361855966,1747843848639,-420.0,0.00040108,30]
[361855967,1747843848649,-420.0,0.00040118,30]
[361855968,1747843848660,-420.0,0.00040118,30]
[361855969,1747843848670,-578.9,0.00040149,30]
[361855970,1747843848680,-8974.03,0.00040201,30]
[361855971,1747843848690,-493.19,0.00040201,30]
[361855972,1747843848700,-420.0,0.00040201,30]
[361855973,1747843848710,-420.0,0.00040201,30]
[361855974,1747843848721,-420.0,0.00040201,30]
[361855975,1747843848731,-1149.69,0.00040201,30]
[361855976,1747843848741,-420.0,0.00040201,30]
[361855977,1747843848751,-420.0,0.00040201,30]
[361855978,1747843848760,-420.0,0.00040201,30]
[361855979,1747843848769,-420.0,0.00040201,30]
[361855980,1747843848780,-420.0,0.00040201,30]
[361855981,1747843848790,-420.0,0.00040201,30]
[361855982,1747843848801,-420.0,0.00040201,30]
[361855983,1747843848812,-677.85,0.00040201,30]
[361855984,1747843848821,-420.0,0.00040201,30]
[361855985,1747843848831,-548.93,0.00040201,30]
[361855986,1747843848841,-1511.72,0.00040201,30]
[361855987,1747843848851,-420.0,0.00040201,30]
[361855988,1747843848861,-420.0,0.00040201,30]
[361855989,1747843848871,-420.0,0.00040201,30]
[361855990,1747843848881,-420.0,0.00040201,30]
[361855991,1747843848892,-420.0,0.00040201,30]
[361855992,1747843848901,-420.0,0.00040201,30]
[361855993,1747843848912,-786.34,0.00040201,30]
[361855994,1747843848923,-420.0,0.00040201,30]
[361855995,1747843848932,-420.0,0.00040201,30]
[361855996,1747843848942,-1897.7,0.00040201,30]
[361855997,1747843848952,-439.08,0.00040201,30]
[361855998,1747843848962,-420.0,0.00040201,30]
[361855999,1747843848972,-420.0,0.00040201,30]
[361856000,1747843848981,-420.0,0.00040201,30]
[361856001,1747843848991,-420.0,0.00040201,30]
[361856002,1747843849000,-420.0,0.00040201,30]
[361856003,1747843849010,-420.0,0.00040201,30]
[361856004,1747843849020,-2647.94,0.00040201,30]
[361856005,1747843849029,-1272.34,0.00040201,30]
[361856006,1747843849039,-580.45,0.00040201,30]
[361856007,1747843849049,-420.0,0.00040201,30]
[361856008,1747843849059,-420.0,0.00040218,30]
[361856009,1747843849069,-420.0,0.00040218,30]
[361856010,1747843849079,-420.0,0.00040218,25]
[361856011,1747843849088,-420.0,0.00040218,30]
[361856012,1747843849098,-2916.89,0.00040218,30]
[361856013,1747843849108,-420.0,0.00040218,30]
[361856014,1747843849120,-420.0,0.00040218,30]
[361856015,1747843849130,-420.0,0.00040218,30]
[361856016,1747843849140,-420.0,0.00040218,30]
[361856017,1747843849151,-420.0,0.00040218,30]
[361856018,1747843849160,-420.0,0.00040218,30]
[361856019,1747843849170,-692.95,0.00040218,30]
[361856020,1747843849179,-1331.61,0.00040218,30]
[361856021,1747843849190,-549.26,0.00040218,30]
[361856022,1747843849200,-766.69,0.00040218,30]
[361856023,1747843849209,-420.0,0.00040218,30]
[361856024,1747843849219,-420.0,0.00040218,30]
[361856025,1747843849229,-420.0,0.00040218,30]
[361856026,1747843849239,-39739.73,0.00040218,7]
[361856027,1747843849248,-420.0,0.00040218,30]
[361856028,1747843849258,-2008.65,0.00040218,30]
[361856029,1747843849268,-420.0,0.00040218,30]
[361856030,1747843849278,-14549.31,0.00040218,2]
[361856031,1747843849287,-420.0,0.00040218,30]
[361856032,1747843849297,-1255.16,0.00040218,30]
[361856033,1747843849308,-420.0,0.00040218,30]
[361856034,1747843849317,-420.0,0.00040218,30]
[361856035,1747843849327,-420.0,0.00040218,30]
[361856036,1747843849336,-420.0,0.00040218,30]
[361856037,1747843849346,-1177.53,0.00040218,30]
[361856038,1747843849355,-659.93,0.00040218,30]
[361856039,1747843849365,-420.0,0.00040218,30]
[361856040,1747843849374,-420.0,0.00040218,30]
[361856041,1747843849384,-420.0,0.00040218,30]
[361856042,1747843849393,-420.0,0.00040218,30]
[361856043,1747843849403,-324.324548,0.00040218,30]
[361856044,1747843849412,-415.14511828,0.00040218,30]
[361856045,1747843849422,-904.76,0.00040218,30]
[361856046,1747843849432,-463.83,0.00040218,30]
[361856047,1747843849442,-420.0,0.00040218,30]
[361856048,1747843849452,-420.0,0.00040218,30]
[361856049,1747843849462,-420.0,0.00040218,30]
[361856050,1747843849472,-568.47513274,0.00040218,30]
[361856051,1747843849482,-420.0,0.00040218,30]
[361856052,1747843849492,-802.3,0.00040218,30]
[361856053,1747843849501,-5079.24,0.00040218,30]
[361856054,1747843849510,-420.0,0.00040218,30]
[361856055,1747843849520,-265.096212,0.00040218,30]
[361856056,1747843849530,-420.0,0.00040218,30]
[361856057,1747843849539,-2730.44,0.00040218,30]
[361856058,1747843849549,-420.0,0.00040218,30]
[361856059,1747843849558,-286.36108701,0.00040218,30]
[361856060,1747843849568,-420.0,0.00040228,30]
[361856061,1747843849578,-420.0,0.00040228,30]
[361856062,1747843849588,-578.9,0.00040258,30]
[361856063,1747843849598,-10064.5152592,0.00040264,3]
[361856064,1747843849608,-826.82994146,0.00040274,7]
[361856065,1747843849618,-150.34,0.00040274,2]
[361856066,1747843849628,-421.71,0.00040274,2]
[361856067,1747843849638,-150.84,0.00040274,2]
[361856068,1747843849647,-150.0,0.00040274,2]
[361856069,1747843849657,-150.0,0.00040274,2]
[361856070,1747843849667,-2106.64,0.00040274,2]
[361856071,1747843849677,-1768.65,0.00040274,2]
[361856072,1747843849688,-300.64,0.00040274,2]
[361856073,1747843849698,-453.23,0.00040274,2]
[361856074,1747843849708,-1158.81,0.00040274,2]
[361856075,1747843849718,-453.23,0.00040274,2]
[361856076,1747843849727,-1158.81,0.00040274,2]
[361856077,1747843849737,-499.53,0.00040274,2]
[361856078,1747843849746,-453.23,0.00040274,2]
[361856079,1747843849756,-150.0,0.00040274,2]
[361856080,1747843849767,-1156.97,0.00040274,2]
[361856081,1747843849777,-353.35,0.00040274,2]
[361856082,1747843849787,-150.0,0.00040274,2]
[361856083,1747843849797,-453.23,0.00040274,2]
[361856084,1747843849806,-453.23,0.00040274,2]
[361856085,1747843849816,-150.0,0.00040274,2]
[361856086,1747843849826,-170.1,0.00040274,2]
[361856087,1747843849835,-885.02,0.00040274,2]
[361856088,1747843849845,-304.9,0.00040274,2]
[361856089,1747843849855,-170.1,0.00040274,2]
[361856090,1747843849866,-532.38,0.00040274,2]
[361856091,1747843849875,-170.1,0.00040274,2]
[361856092,1747843849887,-353.35,0.00040274,2]
[361856093,1747843849897,-353.35,0.00040274,2]
[361856094,1747843849906,-353.35,0.00040274,2]
[361856095,1747843849916,-170.1,0.00040274,2]
[361856096,1747843849926,-300.0,0.00040274,2]
[361856097,1747843849935,-353.35,0.00040274,2]
[361856098,1747843849945,-170.1,0.00040274,2]
[361856099,1747843849956,-352.58,0.00040274,2]
[361856100,1747843849966,-170.1,0.00040274,2]
[361856101,1747843849975,-170.1,0.00040274,2]
[361856102,1747843849985,-170.1,0.00040274,2]
[361856103,1747843849995,-353.35,0.00040274,2]
[361856104,1747843850006,-353.35,0.00040274,2]
[361856105,1747843850016,-170.1,0.00040274,2]
[361856106,1747843850026,-170.1,0.00040274,2]
[361856107,1747843850035,-353.35,0.00040274,2]
[361856108,1747843850046,-353.35,0.00040274,2]
[361856109,1747843850056,-353.35,0.00040274,2]
[361856110,1747843850066,-162.8,0.00040274,2]
[361856111,1747843850076,-353.35,0.00040274,2]
[361856112,1747843850085,-8974.03,0.0004031,30]
[361856113,1747843850095,-420.0,0.0004031,30]
[361856114,1747843850105,-420.0,0.0004031,30]
[361856115,1747843850119,-420.0,0.0004031,30]
[361856116,1747843850129,-1149.69,0.0004031,30]
[361856117,1747843850139,-420.0,0.0004031,30]
[361856118,1747843850148,-420.0,0.0004031,30]
[361856119,1747843850159,-420.0,0.0004031,30]
[361856120,1747843850169,-420.0,0.0004031,30]
[361856121,1747843850178,-420.0,0.0004031,30]
[361856122,1747843850189,-420.0,0.0004031,30]
[361856123,1747843850199,-420.0,0.0004031,30]
[361856124,1747843850210,-677.85,0.0004031,30]
[361856125,1747843850219,-420.0,0.0004031,30]
[361856126,1747843850229,-548.93,0.0004031,30]
[361856127,1747843850239,-1511.72,0.0004031,30]
[361856128,1747843850249,-420.0,0.0004031,30]
[361856129,1747843850258,-420.0,0.0004031,30]
[361856130,1747843850268,-420.0,0.0004031,30]
[361856131,1747843850278,-420.0,0.0004031,30]
[361856132,1747843850288,-420.0,0.0004031,30]
[361856133,1747843850298,-420.0,0.0004031,30]
[361856134,1747843850308,-786.34,0.0004031,30]
[361856135,1747843850318,-420.0,0.0004031,30]
[361856136,1747843850327,-420.0,0.0004031,30]
[361856137,1747843850338,-1897.7,0.0004031,30]
[361856138,1747843850348,-465.33,0.0004031,30]
[361856139,1747843850358,-420.0,0.0004031,30]
[361856140,1747843850370,-420.0,0.0004031,30]
[361856141,1747843850380,-420.0,0.0004031,30]
[361856142,1747843850390,-420.0,0.0004031,30]
[361856143,1747843850399,-420.0,0.0004031,30]
[361856144,1747843850408,-2647.94,0.0004031,30]
[361856145,1747843850418,-1272.34,0.0004031,30]
[361856146,1747843850428,-580.45,0.0004031,30]
[361856147,1747843850441,-420.0,0.0004031,30]
[361856148,1747843850452,-5032.2576296,0.0004032,3]
[361856149,1747843850462,-420.0,0.00040327,30]